fUST/lending_fUST_20240930
["ID","MTS","AMOUNT","RATE_DAILY","PERIOD"]
[339577723,1727710516920,-500.0,0.00013698,2]
[339577724,1727710516945,-452.567404,0.00013698,2]
[339577725,1727710516969,-452.567404,0.00013698,2]
[339577726,1727710516994,-452.567404,0.00013698,2]
[339577727,1727710517019,-500.0,0.00013698,2]
[339577728,1727710517044,-577.08,0.00013698,2]
[339577729,1727710517069,-452.567404,0.00013698,2]
[339577730,1727710517094,-452.567404,0.00013698,2]
[339577731,1727710517118,-452.567404,0.00013698,2]
[339577732,1727710517145,-500.0,0.00013698,2]
[339577733,1727710517170,-574.23,0.00013698,2]
[339577734,1727710517195,-452.567404,0.00013698,2]
[339577735,1727710517219,-452.567411,0.00013698,2]
[339577736,1727710517244,-276.723032,0.00013698,2]
[339577737,1727710517268,-276.723032,0.00013698,2]
[339577738,1727710517292,-276.723032,0.00013698,2]
[339577739,1727710517315,-500.0,0.00013698,2]
[339577740,1727710517340,-276.723032,0.00013698,2]
[339577741,1727710517365,-276.723032,0.00013698,2]
[339577742,1727710517389,-276.723032,0.00013698,2]
[339577743,1727710517413,-276.723032,0.00013698,2]
[339577744,1727710517438,-276.723032,0.00013698,2]
[339577745,1727710517462,-514.43,0.00013698,2]
[339577746,1727710517486,-1169.41,0.00013698,2]
[339577747,1727710517511,-276.723032,0.00013698,2]
[339577748,1727710517536,-276.723032,0.00013698,2]
[339577749,1727710517560,-276.723032,0.00013698,2]
[339577750,1727710517584,-276.723032,0.00013698,2]
[339577751,1727710517608,-276.723032,0.00013698,2]
[339577752,1727710517632,-276.723032,0.00013698,2]
[339577753,1727710517656,-276.723032,0.00013698,2]
[339577754,1727710517680,-579.869572,0.00013698,2]
[339577755,1727710517705,-276.723032,0.00013698,2]
[339577756,1727710517729,-579.869572,0.00013698,2]
[339577757,1727710517754,-276.723032,0.00013698,2]
[339577758,1727710517777,-579.869572,0.00013698,2]
[339577759,1727710517802,-500.0,0.00013698,2]
[339577760,1727710517826,-276.723032,0.00013698,2]
[339577761,1727710517850,-579.869572,0.00013698,2]
[339577762,1727710517874,-276.723032,0.00013698,2]
[339577763,1727710517898,-579.869572,0.00013698,2]
[339577764,1727710517922,-276.723031,0.00013698,2]
[339577765,1727710517947,-579.869572,0.00013698,2]
[339577766,1727710517972,-579.869572,0.00013698,2]
[339577767,1727710517996,-579.869572,0.00013698,2]
[339577768,1727710518020,-500.0,0.00013698,2]
[339577769,1727710518047,-500.0,0.00013698,2]
[339577770,1727710518072,-579.869572,0.00013698,2]
[339577771,1727710518098,-579.869572,0.00013698,2]
[339577772,1727710518126,-579.869572,0.00013698,2]
[339577773,1727710518151,-1037.37905,0.00013698,2]
[339577774,1727710518177,-579.869572,0.00013698,2]
[339577775,1727710518203,-1037.37905,0.00013698,2]
[339577776,1727710518415,-1037.37905,0.00013698,2]
[339577777,1727710518440,-579.869572,0.00013698,2]
[339577778,1727710518465,-579.869572,0.00013698,2]
[339577779,1727710518490,-579.869572,0.00013698,2]
[339577780,1727710518515,-579.869572,0.00013698,2]
[339577781,1727710518540,-579.869572,0.00013698,2]
[339577782,1727710518564,-484.62513483,0.00013698,2]
[339577783,1727710518589,-579.869572,0.00013698,2]
[339577784,1727710518613,-515.22253526,0.00013698,2]
[339577785,1727710518638,-579.869572,0.00013698,2]
[339577786,1727710518662,-579.869565,0.00013698,2]
[339577787,1727710518685,-500.0,0.00013698,2]
[339577788,1727710518708,-500.0,0.00013698,2]
[339577789,1727710518732,-500.0,0.00013698,2]
[339577790,1727710518757,-500.0,0.00013698,2]
[339577791,1727710518781,-500.0,0.00013698,2]
[339577792,1727710518804,-500.0,0.00013698,2]
[339577793,1727710518829,-572.25,0.00013698,2]
[339577794,1727710518853,-500.0,0.00013698,2]
[339577795,1727710518878,-1037.37905,0.00013698,2]
[339577796,1727710518901,-1037.37905,0.00013698,2]
[339577797,1727710518925,-1037.37905,0.00013698,2]
[339577798,1727710518948,-1037.37905,0.00013698,2]
[339577799,1727710518974,-1037.37905,0.00013698,2]
[339577800,1727710518998,-500.0,0.00013698,2]
[339577801,1727710519022,-1408.66,0.00013698,2]
[339577802,1727710519051,-1037.37905,0.00013698,2]
[339577803,1727710519076,-500.0,0.00013698,2]
[339577804,1727710519112,-500.0,0.00013698,2]
[339577805,1727710519141,-1037.37905,0.00013698,2]
[339577806,1727710519166,-500.0,0.00013698,2]
[339577807,1727710519191,-1037.37905,0.00013698,2]
[339577808,1727710519215,-1037.37905,0.00013698,2]
[339577809,1727710519240,-1037.37905,0.00013698,2]
[339577810,1727710519265,-500.0,0.00013698,2]
[339577811,1727710519291,-1037.37905,0.00013698,2]
[339577812,1727710519316,-500.0,0.00013698,2]
[339577813,1727710519344,-1037.37905,0.00013698,2]
[339577814,1727710519368,-500.0,0.00013698,2]
[339577815,1727710519393,-1037.37905,0.00013698,2]
[339577816,1727710519418,-500.0,0.00013698,2]
[339577817,1727710519442,-500.0,0.00013698,2]
[339577818,1727710519466,-1037.37905,0.00013698,2]
[339577819,1727710519491,-1037.37905,0.00013698,2]
[339577820,1727710519515,-1037.37905,0.00013698,2]
[339577821,1727710519539,-1037.379058,0.00013698,2]
[339577822,1727710519564,-500.0,0.00013698,2]
[339577823,1727710519589,-1975.72,0.00013698,2]
[339577824,1727710519613,-171.924223,0.00013698,2]
[339577825,1727710519637,-171.924223,0.00013698,2]
[339577826,1727710519660,-171.924223,0.00013698,2]
[339577827,1727710519684,-171.924223,0.00013698,2]
[339577828,1727710519709,-171.924223,0.00013698,2]
[339577829,1727710519732,-500.0,0.00013698,2]
[339577830,1727710519756,-171.924223,0.00013698,2]
[339577831,1727710519779,-500.0,0.00013698,2]
[339577832,1727710519803,-171.924223,0.00013698,2]
[339577833,1727710519829,-500.0,0.00013698,2]
[339577834,1727710519853,-500.0,0.00013698,2]
[339577835,1727710519876,-171.924223,0.00013698,2]
[339577836,1727710519901,-500.0,0.00013698,2]
[339577837,1727710519926,-300.0,0.00013698,2]
[339577838,1727710519952,-500.0,0.00013698,2]
[339577839,1727710519977,-160.68083541,0.00013698,2]
[339577840,1727710520001,-151.0,0.00013698,2]
[339577841,1727710520026,-171.924223,0.00013698,2]
[339577842,1727710520053,-151.0,0.00013698,2]
[339577843,1727710520077,-171.924223,0.00013698,2]
[339577844,1727710520103,-151.0,0.00013698,2]
[339577845,1727710520133,-171.924223,0.00013698,2]
[339577846,1727710520158,-171.924223,0.00013698,2]
[339577847,1727710520184,-171.924223,0.00013698,2]
[339577848,1727710520208,-171.924223,0.00013698,2]
[339577849,1727710520233,-152.95846916,0.00013698,2]
[339577850,1727710520259,-171.924223,0.00013698,2]
[339577851,1727710520285,-500.0,0.00013698,2]
[339577852,1727710520309,-171.924223,0.00013698,2]
[339577853,1727710520336,-500.0,0.00013698,2]
[339577854,1727710520362,-500.0,0.00013698,2]
[339577855,1727710520388,-171.924223,0.00013698,2]
[339577856,1727710520411,-507.84054313,0.00013698,2]
[339577857,1727710520436,-171.924223,0.00013698,2]
[339577858,1727710520459,-171.924223,0.00013698,2]
[339577859,1727710520483,-171.924222,0.00013698,2]
[339577860,1727710520508,-505.54388792,0.00013698,2]
[339577861,1727710520531,-1000.0,0.00013698,2]
[339577862,1727710520554,-1000.0,0.00013698,2]
[339577863,1727710520579,-517.35708308,0.00013698,2]
[339577864,1727710520603,-2601.48,0.00013698,2]
[339577865,1727710520627,-500.0,0.00013698,2]
[339577866,1727710520650,-852.382191,0.00013698,2]
[339577867,1727710520674,-852.382191,0.00013698,2]
[339577868,1727710520698,-852.382191,0.00013698,2]
[339577869,1727710520722,-852.382191,0.00013698,2]
[339577870,1727710520745,-500.0,0.00013698,2]
[339577871,1727710520769,-500.0,0.00013698,2]
[339577872,1727710520793,-852.382191,0.00013698,2]
[339577873,1727710520817,-852.382191,0.00013698,2]
[339577874,1727710520842,-852.382191,0.00013698,2]
[339577875,1727710520865,-852.382191,0.00013698,2]
[339577876,1727710520889,-852.382191,0.00013698,2]
[339577877,1727710520913,-852.382191,0.00013698,2]
[339577878,1727710520937,-852.382191,0.00013698,2]
[339577879,1727710520962,-500.0,0.00013698,2]
[339577880,1727710520986,-852.382191,0.00013698,2]
[339577881,1727710521010,-852.382191,0.00013698,2]
[339577882,1727710521036,-562.38,0.00013698,2]
[339577883,1727710521084,-852.382191,0.00013698,2]
[339577884,1727710521111,-852.382191,0.00013698,2]
[339577885,1727710521141,-852.382191,0.00013698,2]
[339577886,1727710521168,-500.0,0.00013698,2]
[339577887,1727710521194,-852.382191,0.00013698,2]
[339577888,1727710521221,-852.382191,0.00013698,2]
[339577889,1727710521246,-852.382191,0.00013698,2]
[339577890,1727710521272,-852.3822,0.00013698,2]
[339577891,1727710521298,-589.96,0.00013698,2]
[339577892,1727710521324,-500.0,0.00013698,2]
[339577893,1727710521351,-500.0,0.00013698,2]
[339577894,1727710521377,-500.0,0.00013698,2]
[339577895,1727710521402,-251.47339405,0.00013698,2]
[339577896,1727710521427,-700.16,0.00013698,2]
[339577897,1727710521452,-500.0,0.00013698,2]
[339577898,1727710521477,-500.0,0.00013698,2]
[339577899,1727710521502,-500.0,0.00013698,2]
[339577900,1727710521526,-610.49831103,0.00013698,2]
[339577901,1727710521550,-500.0,0.00013698,2]
[339577902,1727710521575,-500.0,0.00013698,2]
[339577903,1727710521601,-500.0,0.00013698,2]
[339577904,1727710521625,-500.0,0.00013698,2]
[339577905,1727710521651,-500.0,0.00013698,2]
[339577906,1727710521934,-709.82,0.00013698,2]
[339577907,1727710521962,-500.0,0.00013698,2]
[339577908,1727710521988,-500.0,0.00013698,2]
[339577909,1727710522014,-500.0,0.00013698,2]
[339577910,1727710522041,-500.0,0.00013698,2]
[339577911,1727710522065,-500.0,0.00013698,2]
[339577912,1727710522092,-642.28,0.00013698,2]
[339577913,1727710522116,-500.0,0.00013698,2]
[339577914,1727710522147,-500.0,0.00013698,2]
[339577915,1727710522174,-500.0,0.00013698,2]
[339577916,1727710522202,-705.65,0.00013698,2]
[339577917,1727710522228,-500.0,0.00013698,2]
[339577918,1727710522253,-6682.519724,0.00013698,2]
[339577919,1727710522279,-500.0,0.00013698,2]
[339577920,1727710522303,-6682.519724,0.00013698,2]
[339577921,1727710522329,-6682.519724,0.00013698,2]
[339577922,1727710522354,-500.0,0.00013698,2]
[339577923,1727710522379,-6682.519724,0.00013698,2]
[339577924,1727710522405,-6682.519724,0.00013698,2]
[339577925,1727710522430,-6682.519724,0.00013698,2]
[339577926,1727710522455,-500.0,0.00013698,2]
[339577927,1727710522480,-6682.519724,0.00013698,2]
[339577928,1727710522506,-6682.519724,0.00013698,2]
[339577929,1727710522531,-1368.06261605,0.00013698,2]
[339577930,1727710532289,3920.2029843,0.0001,2]
[339577931,1727710540512,1500.0,9.78e-05,2]
[339577935,1727710726141,186658.956747,0.0001,2]
[339577940,1727710746735,10000.0,0.0001,2]
[339577941,1727710763049,10000.0,0.0001,2]
[339577944,1727711194137,-190.782346,0.00010782,2]
[339577945,1727711194163,-300.0,0.00010958,2]
[339577946,1727711194188,-43.727654,0.00010958,2]
[339577959,1727711357090,-250.0,0.0001057,2]
[339577960,1727711357113,-250.0,0.00010599,2]
[339577961,1727711357135,-250.0,0.00010628,2]
[339577962,1727711357159,-250.0,0.00010657,2]
[339577963,1727711357182,-250.0,0.00010686,2]
[339577964,1727711357206,-250.0,0.00010715,2]
[339577965,1727711357230,-250.0,0.00010744,2]
[339577966,1727711357253,-250.0,0.00010773,2]
[339577967,1727711357277,-250.0,0.00010802,2]
[339577968,1727711357299,-250.0,0.00010831,2]
[339577969,1727711357322,-209.52019565,0.00010847,2]
[339577970,1727711357346,-250.0,0.0001086,2]
[339577971,1727711357370,-250.0,0.00010889,2]
[339577972,1727711357394,-225.91292435,0.00010918,2]
[339578674,1727711432347,-725.88220562,0.00010071,2]
[339578675,1727711432361,-807.98813339,0.00010071,2]
[339578806,1727711438378,-716.68371583,0.00010071,2]
[339578809,1727711438499,-749.44594516,0.00010071,2]
[339578810,1727711438511,-300.0,0.00010139,2]
[339578811,1727711438521,-300.0,0.00010139,2]
[339578813,1727711438531,-15036.2762334,0.0001014,2]
[339578814,1727711438541,-24.08707565,0.00010918,2]
[339578815,1727711438552,-250.0,0.00010947,2]
[339578816,1727711438563,-906.6,0.00010959,2]
[339578818,1727711438573,-755.5,0.00010959,2]
[339578819,1727711438584,-629.59,0.00010959,2]
[339578821,1727711438594,-524.66,0.00010959,2]
[339578822,1727711438604,-437.21,0.00010959,2]
[339578823,1727711438614,-364.34,0.00010959,2]
[339578824,1727711438623,-303.62,0.00010959,2]
[339578825,1727711438635,-253.02,0.00010959,2]
[339578827,1727711438644,-210.85,0.00010959,2]
[339578828,1727711438654,-175.71,0.00010959,2]
[339578829,1727711438664,-878.55,0.00010959,2]
[339578830,1727711438674,-250.0,0.00010976,2]
[339578831,1727711438685,-250.0,0.00011005,2]
[339578833,1727711438696,-250.0,0.00011034,2]
[339578834,1727711438706,-250.0,0.00011063,2]
[339578835,1727711438716,-250.0,0.00011092,2]
[339578836,1727711438725,-250.0,0.00011121,2]
[339578837,1727711438735,-1500.0,0.0001115,2]
[339578839,1727711438745,-420.0,0.00011151,2]
[339578840,1727711438756,-203.09319034,0.00011349,2]
[339578841,1727711438766,-9961.99141579,0.0001135,2]
[339579070,1727711449463,-14207.4087775,0.0001135,2]
[339579077,1727711449752,-730.59980671,0.0001135,2]
[339579078,1727711449763,-250.0,0.00011376,2]
[339579079,1727711449774,-467.5696111,0.00011423,2]
[339579080,1727711449783,-201.4890734,0.00011467,2]
[339579081,1727711449793,-414.27742236,0.00011728,2]
[339579083,1727711449803,-190.6608063,0.00011738,2]
[339579084,1727711449812,-190.782346,0.00011917,2]
[339579085,1727711449822,-587.0,0.00012264,2]
[339579086,1727711449832,-500.0,0.00012345,2]
[339579088,1727711449841,-1500.0,0.0001252,2]
[339579089,1727711449851,-3910.16881481,0.000129,2]
[339579090,1727711449860,-153.0,0.00012941,2]
[339579091,1727711449870,-153.0,0.00012941,2]
[339579092,1727711449880,-154.8658611,0.00012941,2]
[339579094,1727711449891,-500.0,0.00012995,2]
[339579095,1727711449900,-153.0,0.00013078,2]
[339579096,1727711449909,-485.607556,0.00013151,2]
[339579097,1727711449920,-412.5224329,0.00013178,2]
[339579098,1727711449930,-412.5224329,0.00013178,2]
[339579100,1727711449939,-412.5224329,0.00013178,2]
[339579101,1727711449948,-3910.16881477,0.00013365,2]
[339579102,1727711449958,-823.0,0.00013489,2]
[339579103,1727711449968,-27484.35224414,0.00013579,2]
[339579120,1727711450732,-1256.38284064,0.00013579,2]
[339579122,1727711450744,-17169.990938,0.00013579,2]
[339579131,1727711451106,-27731.93796252,0.00013579,2]
[339579132,1727711451117,-3012.88063788,0.00013579,2]
[339579133,1727711451126,-118622.12478527,0.00013589,2]
[339579134,1727711451137,-529.56837927,0.00013598,2]
[339579135,1727711451148,-153.0,0.000136,2]
[339579137,1727711451159,-153.0,0.000136,2]
[339579138,1727711451168,-212.726169,0.0001362,2]
[339579139,1727711451178,-153.0,0.0001362,2]
[339579140,1727711451187,-153.0,0.0001362,2]
[339579141,1727711451197,-153.0,0.0001362,2]
[339579142,1727711451206,-153.0,0.0001362,2]
[339579144,1727711451216,-153.0,0.0001362,2]
[339579145,1727711451225,-153.0,0.0001362,2]
[339579146,1727711451235,-153.0,0.0001362,2]
[339579147,1727711451245,-153.0,0.0001362,2]
[339579148,1727711451254,-153.0,0.0001362,2]
[339579150,1727711451264,-307.6100411,0.0001362,2]
[339579151,1727711451274,-500.0,0.00013644,2]
[339579152,1727711451284,-4720.5714876,0.00013645,2]
[339579153,1727711451294,-24547.5546618,0.00013669,2]
[339579154,1727711451304,-1004.29354596,0.00013669,2]
[339579155,1727711451313,-501.57471175,0.00013673,2]
[339579156,1727711451325,-501.14209901,0.00013673,2]
[339579157,1727711451335,-500.0,0.00013673,2]
[339579158,1727711451344,-500.0,0.00013673,2]
[339579159,1727711451354,-500.0,0.00013673,2]
[339579160,1727711451363,-500.0,0.00013673,2]
[339579161,1727711451373,-98190.2186471,0.00013678,2]
[339579162,1727711451382,-4017.17418384,0.00013678,2]
[339579163,1727711451394,-151.0,0.00013688,2]
[339579164,1727711451404,-151.0,0.00013688,2]
[339579165,1727711451415,-151.0,0.00013688,2]
[339579166,1727711451424,-222.0098,0.00013688,2]
[339579167,1727711451441,-151.0,0.00013688,2]
[339579168,1727711451453,-151.0,0.00013688,2]
[339579169,1727711451463,-170.478644,0.00013688,2]
[339579170,1727711451474,-1014.831594,0.00013688,2]
[339579171,1727711451485,-1014.831594,0.00013688,2]
[339579172,1727711451495,-151.0,0.00013688,2]
[339579173,1727711451507,-1014.831594,0.00013688,2]
[339579174,1727711451517,-1014.831594,0.00013688,2]
[339579175,1727711451528,-151.0,0.00013688,2]
[339579176,1727711451539,-151.0,0.00013688,2]
[339579177,1727711451550,-151.0,0.00013688,2]
[339579178,1727711451560,-151.0,0.00013688,2]
[339579179,1727711451570,-151.0,0.00013688,2]
[339579180,1727711451580,-151.0,0.00013688,2]
[339579181,1727711451591,-151.0,0.00013688,2]
[339579182,1727711451601,-151.0,0.00013688,2]
[339579183,1727711451611,-151.0,0.00013688,2]
[339579184,1727711451622,-151.0,0.00013688,2]
[339579185,1727711451632,-891.048249,0.00013688,2]
[339579186,1727711451644,-891.048249,0.00013688,2]
[339579187,1727711451654,-151.0,0.00013688,2]
[339579188,1727711451664,-151.0,0.00013688,2]
[339579189,1727711451674,-891.048249,0.00013688,2]
[339579190,1727711451684,-891.048249,0.00013688,2]
[339579191,1727711451694,-151.0,0.00013688,2]
[339579192,1727711451704,-151.0,0.00013688,2]
[339579193,1727711451715,-151.0,0.00013688,2]
[339579194,1727711451725,-420.858895,0.00013688,2]
[339579195,1727711451735,-420.858895,0.00013688,2]
[339579196,1727711451744,-151.0,0.00013688,2]
[339579197,1727711451754,-151.0,0.00013688,2]
[339579198,1727711451764,-420.858895,0.00013688,2]
[339579199,1727711451775,-420.858895,0.00013688,2]
[339579200,1727711451785,-151.0,0.00013688,2]
[339579201,1727711451795,-151.0,0.00013688,2]
[339579202,1727711451804,-260.407373,0.00013688,2]
[339579203,1727711451814,-1651.997386,0.00013688,2]
[339579204,1727711451824,-151.0,0.00013688,2]
[339579205,1727711451834,-1651.997386,0.00013688,2]
[339579206,1727711451844,-151.0,0.00013688,2]
[339579207,1727711451854,-1651.997386,0.00013688,2]
[339579208,1727711451864,-1651.997386,0.00013688,2]
[339579209,1727711451874,-3941.108704,0.00013688,2]
[339579210,1727711451884,-3941.108704,0.00013688,2]
[339579211,1727711451895,-151.0,0.00013688,2]
[339579212,1727711451905,-151.0,0.00013688,2]
[339579213,1727711451916,-3941.108704,0.00013688,2]
[339579214,1727711451926,-3941.108704,0.00013688,2]
[339579215,1727711451936,-2103.949473,0.00013688,2]
[339579216,1727711451946,-2103.949473,0.00013688,2]
[339579217,1727711451955,-2103.949473,0.00013688,2]
[339579218,1727711451966,-2103.949473,0.00013688,2]
[339579219,1727711451975,-151.0,0.00013688,2]
[339579220,1727711451985,-151.0,0.00013688,2]
[339579221,1727711451996,-151.0,0.00013688,2]
[339579222,1727711452006,-151.0,0.00013688,2]
[339579223,1727711452017,-151.0,0.00013688,2]
[339579224,1727711452027,-278.283496,0.00013688,2]
[339579225,1727711452037,-151.0,0.00013688,2]
[339579226,1727711452047,-151.0,0.00013688,2]
[339579227,1727711452057,-151.0,0.00013688,2]
[339579228,1727711452067,-737.045908,0.00013688,2]
[339579229,1727711452077,-737.045908,0.00013688,2]
[339579230,1727711452087,-151.0,0.00013688,2]
[339579231,1727711452097,-151.0,0.00013688,2]
[339579232,1727711452107,-151.0,0.00013688,2]
[339579233,1727711452117,-49095.1093236,0.00013688,2]
[339579234,1727711452128,-11047.2290056,0.00013688,2]
[339579235,1727711452139,-1004.29354596,0.00013688,2]
[339579236,1727711452149,-256.58144042,0.00013697,2]
[339579237,1727711452158,-7561.80464142,0.00013697,2]
[339579238,1727711452168,-211.05973765,0.00013698,2]
[339579239,1727711452179,-500.0,0.00013698,2]
[339579240,1727711452190,-500.0,0.00013698,2]
[339579241,1727711452199,-500.0,0.00013698,2]
[339579242,1727711452210,-219.99999999,0.00013698,2]
[339579243,1727711452220,-500.0,0.00013698,2]
[339579244,1727711452230,-408.07864947,0.00013698,2]
[339579245,1727711452240,-172.95770498,0.00013698,2]
[339579246,1727711452251,-500.0,0.00013698,2]
[339579247,1727711452261,-325.65888213,0.00013698,2]
[339579248,1727711452271,-389.46960784,0.00013698,2]
[339579249,1727711452281,-500.0,0.00013698,2]
[339579250,1727711452291,-525.0,0.00013698,2]
[339579251,1727711452301,-500.0,0.00013698,2]
[339579252,1727711452312,-500.0,0.00013698,2]
[339579253,1727711452323,-500.0,0.00013698,2]
[339579254,1727711452333,-562.25618029,0.00013698,2]
[339579255,1727711452343,-500.0,0.00013698,2]
[339579256,1727711452352,-500.0,0.00013698,2]
[339579257,1727711452363,-500.0,0.00013698,2]
[339579258,1727711452374,-399.53763885,0.00013698,2]
[339579259,1727711452384,-190.14049768,0.00013698,2]
[339579260,1727711452395,-500.0,0.00013698,2]
[339579261,1727711452405,-500.0,0.00013698,2]
[339579262,1727711452415,-468.12751866,0.00013698,2]
[339579263,1727711452426,-500.0,0.00013698,2]
[339579264,1727711452440,-500.0,0.00013698,2]
[339579265,1727711452450,-731.6,0.00013698,2]
[339579266,1727711452461,-500.0,0.00013698,2]
[339579267,1727711452472,-500.0,0.00013698,2]
[339579268,1727711452482,-500.0,0.00013698,2]
[339579269,1727711452493,-500.0,0.00013698,2]
[339579270,1727711452503,-500.0,0.00013698,2]
[339579271,1727711452515,-500.0,0.00013698,2]
[339579272,1727711452526,-190.14049768,0.00013698,2]
[339579273,1727711452536,-500.0,0.00013698,2]
[339579274,1727711452547,-500.0,0.00013698,2]
[339579275,1727711452556,-375.12515092,0.00013698,2]
[339579276,1727711452566,-406.95606885,0.00013698,2]
[339579277,1727711452577,-500.0,0.00013698,2]
[339579278,1727711452588,-500.0,0.00013698,2]
[339579279,1727711452599,-500.0,0.00013698,2]
[339579280,1727711452608,-500.0,0.00013698,2]
[339579281,1727711452619,-500.0,0.00013698,2]
[339579282,1727711452629,-500.0,0.00013698,2]
[339579283,1727711452639,-500.0,0.00013698,2]
[339579284,1727711452649,-500.0,0.00013698,2]
[339579285,1727711452659,-500.0,0.00013698,2]
[339579286,1727711452669,-500.0,0.00013698,2]
[339579287,1727711452679,-500.0,0.00013698,2]
[339579288,1727711452690,-500.0,0.00013698,2]
[339579289,1727711452700,-500.0,0.00013698,2]
[339579290,1727711452710,-500.0,0.00013698,2]
[339579291,1727711452720,-500.0,0.00013698,2]
[339579292,1727711452730,-500.0,0.00013698,2]
[339579293,1727711452740,-326.17756451,0.00013698,2]
[339579294,1727711452751,-500.0,0.00013698,2]
[339579295,1727711452761,-500.0,0.00013698,2]
[339579296,1727711452772,-500.0,0.00013698,2]
[339579297,1727711452783,-500.0,0.00013698,2]
[339579298,1727711452793,-237.83694525,0.00013698,2]
[339579299,1727711452804,-500.0,0.00013698,2]
[339579300,1727711452814,-206.99763226,0.00013698,2]
[339579301,1727711452824,-500.0,0.00013698,2]
[339579302,1727711452835,-500.06,0.00013698,2]
[339579303,1727711453079,-500.0,0.00013698,2]
[339579304,1727711453089,-500.0,0.00013698,2]
[339579305,1727711453098,-500.0,0.00013698,2]
[339579306,1727711453108,-2049.07,0.00013698,2]
[339579307,1727711453118,-500.0,0.00013698,2]
[339579308,1727711453129,-500.0,0.00013698,2]
[339579309,1727711453139,-500.0,0.00013698,2]
[339579310,1727711453148,-500.0,0.00013698,2]
[339579311,1727711453159,-500.0,0.00013698,2]
[339579312,1727711453169,-500.0,0.00013698,2]
[339579313,1727711453179,-500.0,0.00013698,2]
[339579314,1727711453190,-1087.96,0.00013698,2]
[339579315,1727711453200,-500.0,0.00013698,2]
[339579316,1727711453210,-500.0,0.00013698,2]
[339579317,1727711453220,-500.0,0.00013698,2]
[339579318,1727711453229,-582.20990287,0.00013698,2]
[339579319,1727711453239,-508.60070168,0.00013698,2]
[339579320,1727711453250,-500.0,0.00013698,2]
[339579321,1727711453260,-500.0,0.00013698,2]
[339579322,1727711453269,-450.91210039,0.00013698,2]
[339579323,1727711453280,-500.0,0.00013698,2]
[339579324,1727711453290,-1028.62,0.00013698,2]
[339579325,1727711453299,-500.0,0.00013698,2]
[339579326,1727711453309,-512.22572939,0.00013698,2]
[339579327,1727711453319,-500.0,0.00013698,2]
[339579328,1727711453328,-500.0,0.00013698,2]
[339579329,1727711453338,-500.0,0.00013698,2]
[339579330,1727711453348,-500.0,0.00013698,2]
[339579331,1727711453358,-500.0,0.00013698,2]
[339579332,1727711453368,-500.0,0.00013698,2]
[339579333,1727711453378,-500.0,0.00013698,2]
[339579334,1727711453388,-500.0,0.00013698,2]
[339579335,1727711453399,-500.0,0.00013698,2]
[339579336,1727711453409,-500.0,0.00013698,2]
[339579337,1727711453419,-500.0,0.00013698,2]
[339579338,1727711453430,-500.0,0.00013698,2]
[339579339,1727711453442,-500.0,0.00013698,2]
[339579340,1727711453452,-220.50806816,0.00013698,2]
[339579341,1727711453461,-500.0,0.00013698,2]
[339579342,1727711453471,-500.0,0.00013698,2]
[339579343,1727711453482,-501.32191278,0.00013698,2]
[339579344,1727711453493,-500.0,0.00013698,2]
[339579345,1727711453503,-500.0,0.00013698,2]
[339579346,1727711453515,-500.0,0.00013698,2]
[339579347,1727711453525,-623.81,0.00013698,2]
[339579348,1727711453535,-500.0,0.00013698,2]